Cogmind - Beta 14 @@@ ROGUE MODE // 2025.03.22 @ 15:55:37 Player: Leha44581 Result: Destroyed by G-47 Trooper with Particle Gun Performance ------------- Evolutions (0) 0 Regions Visited (2) 400 Robots Destroyed (14) 70 Value Destroyed (332) 332 Prototype IDs (0) 0 Alien Tech Used (0) 0 Bonus (0) 0 TOTAL SCORE: 802 Bonus ------- None Cogmind --------- Core Integrity 0/250 Matter 300/300 Energy 100/100 System Corruption 0% Temperature Cool (10) Movement Hovering (420) Ox6 Location -10/Mines Parts ------- > --- POWER (1) -------- (None) > --- PROPULSION (2) --- Hover Unit > --- UTILITY (2) ------ High-capacity Storage Unit > --- WEAPON (2) ------- Light Assault Rifle > --- INVENTORY (20) --- Light Ion Engine Light Nuclear Core Aluminum Leg Wheel Hover Unit Heat Sink Improved Heat Sink Medium Battery (150) Sensor Array Signal Interpreter Power Shielding Light Armor Plating Tractor Beam Tractor Beam Small Laser Peak State ------------ > --- POWER ------------ Light Nuclear Core > --- PROPULSION ------- Hover Unit Hover Unit > --- UTILITY ---------- High-capacity Storage Unit Seismic Detector > --- WEAPON ----------- Assault Rifle Light Assault Rifle > --- INVENTORY -------- Light Ion Engine Aluminum Leg Wheel Hover Unit Medium Battery Sensor Array Signal Interpreter Power Shielding Light Armor Plating Tractor Beam [Rating: 10] Favorites ----------- Power Light Nuclear Core Engine Light Ion Engine Power Core Light Nuclear Core Propulsion Hover Unit Wheel Wheel Hover Unit Hover Unit Utility Seismic Detector Device Seismic Detector Storage Medium Battery Weapon Assault Rifle Ballistic Gun Assault Rifle Build | -11 -10 -10 ------- Run | Yrd Mat Min Slots Evolved . | . . . Power . | . . . Propulsion . | . . . Utility . | . . . Weapon . | . . . Parts Attached 18 | 4 11 3 Power 4 | 1 2 1 Engine 2 | 1 1 . Core 2 | . 1 1 Reactor . | . . . Propulsion 9 | 2 6 1 Treads . | . . . Leg . | . . . Wheel 2 | 2 . . Hover 7 | . 6 1 Flight . | . . . Utility 3 | . 2 1 Device 1 | . 1 . Storage 2 | . 1 1 Processor . | . . . Hackware . | . . . Protection . | . . . Artifact . | . . . Weapon 2 | 1 1 . Energy Gun . | . . . Energy Cannon . | . . . Ballistic Gun 2 | 1 1 . Ballistic Cannon . | . . . Launcher . | . . . Special Weapon . | . . . Impact Weapon . | . . . Slashing Weapon . | . . . Piercing Weapon . | . . . Special Melee Weapon . | . . . Unidentified Prototypes . | . . . Parts Lost 7 | . 3 4 Power 2 | . 1 1 Propulsion 3 | . 2 1 Utility 1 | . . 1 Weapon 1 | . . 1 Highest Loss Streak 4 | . 1 4 To Critical Strikes . | . . . Average Slot Usage (%) 84 | . 78 92 Engine 6 | . 10 . Core 6 | . 2 13 Wheel 1 | . 2 . Hover 24 | . 23 25 Device 9 | . 7 12 Storage 10 | . 8 14 Ballistic Gun 23 | . 22 25 Peak Build Rating 10 | 4 9 10 Average Rating 6 | 3 5 9 On Entrance 4 | . 4 9 Naked Turns . | . . . Heaviest Build 49 | 5 11 49 Greatest Support 20 | 20 20 12 Greatest Overweight (x) 7 | . 1 7 Average Overweight (x) . | . . 2 Largest Inventory Capacity 20 | 5 5 20 Average Capacity 9 | 5 5 18 Most Carried 15 | . 5 15 Average Carried 5 | . 2 11 Final Capacity 20 | 5 5 20 Final Carried 15 | . 5 15 Class Distribution -------------------- 100% | Mutant Dominant Class ---------------- Mutant | -10/Materials Mutant | -10/Mines Resources | -11 -10 -10 ----------- Run | Yrd Mat Min Matter Collected 553 | 249 249 55 Remotely . | . . . Salvage Created 553 | 30 359 164 Parts 26 | 1 18 7 Haulers Intercepted . | . . . Recyclers Shooed 5 | . 4 1 Parts Field Recycled . | . . . Retrieved Matter . | . . . Parts Self-Destructed . | . . . Prevented . | . . . Kills | -11 -10 -10 ------- Run | Yrd Mat Min Combat Hostiles Destroyed 11 | 1 8 2 Guns 11 | 1 8 2 Classes Destroyed 4 | 1 3 . Recycler 2 | . 1 1 Watcher 1 | . 1 . Swarmer 4 | . 4 . Grunt 7 | 1 4 2 Best Kill Streak 3 | 1 3 3 Combat Bots Only 2 | 1 2 2 Max Kills in Single Turn 1 | 1 1 1 Gunslinging . | . . . Exploded . | . . . Melee . | . . . Uniques/NPCs Destroyed . | . . . Combat | -11 -10 -10 -------- Run | Yrd Mat Min Hostile Shots Fired 97 | 3 62 32 Missed 24 | 1 18 5 Damage Taken 781 | 21 404 356 Core 263 | 21 79 163 Absorbed by Shields . | . . . Core Remaining (%) 91 | 91 . . Volleys Fired 54 | 3 42 9 Largest 2 | 1 2 2 Hottest 40 | 20 40 40 Shots Fired 90 | 3 70 17 Gun 90 | 3 70 17 Cannon . | . . . Launcher . | . . . Special . | . . . Kinetic 90 | 3 70 17 Thermal . | . . . Explosive . | . . . Electromagnetic . | . . . Robot Hit Streak 11 | 2 7 11 Robot Miss Streak 3 | 1 2 3 Penetration Max . | . . . Secondary Targets 1 | . 1 . Max Gunslinging Chain 1 | . 1 . Shots Hit Robots 58 | 2 45 11 Core Hits 26 | 2 17 7 Critical Kills 2 | . 1 1 Critical Parts Destroyed 3 | . 3 . Critical Strikes 5 | . 4 1 Destroy 5 | . 4 1 Melee Attacks . | . . . Impact . | . . . Slashing . | . . . Piercing . | . . . Sneak Attacks . | . . . Combat Hostiles . | . . . Follow-up Attacks . | . . . Damage Inflicted 663 | 20 507 136 Guns 663 | 20 507 136 Cannons . | . . . Explosions . | . . . Melee . | . . . Ramming . | . . . Kinetic 663 | 20 507 136 Thermal . | . . . Explosive . | . . . Electromagnetic . | . . . Impact . | . . . Slashing . | . . . Piercing . | . . . Highest Corruption . | . . . Average Corruption . | . . . Corruption Purged . | . . . Corruption Blocked . | . . . Overload Shots . | . . . Overflow Damage . | . . . Projectiles . | . . . Explosions . | . . . Melee . | . . . Knockbacks . | . . . Impact . | . . . Kinetic . | . . . Secondary . | . . . Self-Inflicted Damage . | . . . Shots . | . . . Rammed . | . . . Targets Rammed . | . . . Kicked . | . . . Crushed . | . . . Highest Temperature 28 | . 16 28 Average Temperature 7 | . 5 12 Received Heat Transfer 315 | 12 96 207 Siege Activations . | . . . Robots Corrupted . | . . . Combat Hostiles . | . . . Parts Fried . | . . . Impact Corruptions . | . . . Robots Melted . | . . . Combat Hostiles . | . . . Parts Melted . | . . . Heat Transferred . | . . . Parts Sabotaged . | . . . Parts Stolen . | . . . Parts Stripped . | . . . Power Chain Reactions . | . . . Alert | -11 -10 -10 ------- Run | Yrd Mat Min Peak Influence 299 | 20 299 171 Initial 116 | . 13 116 Average 139 | 1 155 149 Maximum Alert Level 1 | . 1 . Low Security (%) 78 | 100 61 100 Level 1 21 | . 38 . Level 2 . | . . . Level 3 . | . . . Level 4 . | . . . Level 5 . | . . . High Security . | . . . Max Security . | . . . Squads Dispatched 3 | . 3 . Investigation 1 | . 1 . Extermination . | . . . Reinforcement 2 | . 2 . Assault . | . . . Garrison . | . . . Intercept . | . . . Searches Triggered . | . . . Construction Impeded . | . . . Haulers Reinforced . | . . . Active Scanning Responses . | . . . Cargo Convoy Interrupts . | . . . Stealth | -11 -10 -10 --------- Run | Yrd Mat Min Distress Signals . | . . . Communications Jammed . | . . . Distress Signals . | . . . Times Spotted 23 | 1 18 4 Peak Tracking Total 5 | 1 5 2 Tactical Retreats 1 | . 1 . Traps | -11 -10 -10 ------- Run | Yrd Mat Min Traps Triggered 1 | . 1 . Indirectly . | . . . Trap Hack Attempts . | . . . Triggered . | . . . Disarmed . | . . . Reprogrammed . | . . . Reused . | . . . Traps Extracted . | . . . Installed . | . . . Triggered . | . . . Machines | -11 -10 -10 ---------- Run | Yrd Mat Min Machines Disabled . | . . . Max in Single Turn . | . . . Machines Repaired . | . . . Machines Dismantled . | . . . Machines Sabotaged . | . . . Overloaded Fab Kills . | . . . Hacking | -11 -10 -10 --------- Run | Yrd Mat Min Machines Accessed 4 | . 4 . Terminals 4 | . 4 . Fabricators . | . . . Repair Stations . | . . . Recycling Units . | . . . Scanalyzers . | . . . Garrison Access . | . . . Total Hacks 10 | . 10 . Successful 5 | . 5 . Failed 5 | . 5 . Catastrophic . | . . . Database Lockouts . | . . . Manual . | . . . Terminals 10 | . 10 . Fabricators . | . . . Repair Stations . | . . . Recycling Units . | . . . Scanalyzers . | . . . Garrison Access . | . . . Terminal Hacks 5 | . 5 . Record 2 | . 2 . Robot Analysis 1 | . 1 . Locate Traps 1 | . 1 . Zone Layout 1 | . 1 . Fabricator Hacks . | . . . Repair Station Hacks . | . . . Recycling Unit Hacks . | . . . Scanalyzer . | . . . Garrison Access Hacks . | . . . Unauthorized Hacks . | . . . Terminals . | . . . Fabricators . | . . . Repair Stations . | . . . Recycling Units . | . . . Scanalyzers . | . . . Garrison Access . | . . . Data Cores Recovered . | . . . Used . | . . . Hacking Detections 2 | . 2 . Full Trace Events . | . . . Feedback Events . | . . . Feedback Blocked . | . . . Robot Schematics Acquired . | . . . Robots Built . | . . . Authchips . | . . . Time . | . . . Total Robot Build Rating . | . . . Part Schematics Acquired . | . . . Parts Built . | . . . Authchips . | . . . Time . | . . . Total Part Build Rating . | . . . Parts Repaired . | . . . Time . | . . . Parts Recycled . | . . . Recycled Matter . | . . . Retrieved Matter . | . . . Retrieved Components . | . . . Parts Scanalyzed . | . . . Part Schematics Acquired . | . . . Parts Damaged . | . . . Bothacking | -11 -10 -10 ------------ Run | Yrd Mat Min Used RIF Installer . | . . . Robots Hacked . | . . . Non-combat . | . . . Combat . | . . . Robot Hacks Applied . | . . . Relay Couplers Released . | . . . Fabnet Peak Effective % . | . . . Robots Rewired . | . . . Allies Hacked . | . . . Hacks Repelled . | . . . Allies | -11 -10 -10 -------- Run | Yrd Mat Min Total Allies . | . . . Largest Group . | . . . Highest-Rated Group . | . . . Highest-Rated Ally . | . . . Total Orders . | . . . Ally Attacks . | . . . Total Damage . | . . . Kills . | . . . Allies Corrupted . | . . . Allies Melted . | . . . Intel | -11 -10 -10 ------- Run | Yrd Mat Min Robot Analysis Total 1 | . 1 . Derelict Logs Recovered . | . . . Drone Launches . | . . . Drone Recoveries . | . . . Exploration | -11 -10 -10 ------------- Run | Yrd Mat Min Turns Passed 671 | 61 373 237 Spaces Moved 536 | 67 376 93 Core 19 | 16 3 . Treads . | . . . Legs . | . . . Wheels 88 | 51 37 . Hover 429 | . 336 93 Flight . | . . . Fastest Speed 50 | 50 56 56 Average Speed 89 | 72 60 216 Slowest Speed 480 | 80 120 480 Overloaded Moves . | . . . Propulsion Burnouts . | . . . Robots Hopped . | . . . Cave-ins Triggered . | . . . Exploration Rate (%) 22 | 5 42 19 Regions Visited 2 Branch Regions 1 Pre-discovered Areas . | . . . Known Exits Taken . | . . . Unknown Exits Taken 2 | 1 1 . Scrap Searched 1 | . . 1 Spaces Dug . | . . . Terrain Destroyed . | . . . Melee . | . . . Projectile . | . . . AOE . | . . . Terrain Rammed . | . . . Walls Destroyed . | . . . Machines Disabled . | . . . Actions | -11 -10 -10 --------- Run | Yrd Mat Min Total 642 | 73 453 116 Wait 14 | . 14 . Move 534 | 66 375 93 Hop . | . . . Pick Up 15 | . 5 10 Fast Attach 16 | 4 11 1 Attach . | . . . Detach 1 | . 1 . Swap 2 | . . 2 Drop 6 | . 5 1 Fire 54 | 3 42 9 Melee . | . . . Ram . | . . . Kick . | . . . Crush . | . . . Escape Stasis . | . . . Rewire . | . . . Trap . | . . . Miscellaneous . | . . . Route ------- -11/Scrapyard -10/Materials -10/Mines (discovered 2 exits: [*Mat x2]) History --------- Turn | Location | Event 2 | -11/Scrapyard | Met Revision 17 48 | -11/Scrapyard | Discovered new exit (range 8) 62 | -11/Scrapyard | Entered Materials 189 | -10/Materials | Discovered new exit (range 16) 322 | -10/Materials | Build established: Mutant 435 | -10/Materials | Entered Mines 506 | -10/Mines | Core integrity fell below 50% 596 | -10/Mines | Discovered new exit (range 5) 605 | -10/Mines | Discovered new exit (range 11) 665 | -10/Mines | Core integrity fell below 20% 672 | -10/Mines | Destroyed by G-47 Trooper with Particle Gun Last Messages --------------- 00539_ K-01 Serf collects debris. 00539_ Acquired 24 matter. 00543_ K-01 Serf collects debris. 00548_ Acquired Imp. Heat Sink. 00549_ K-01 Serf collects debris. Having swapped a part into your inventory to attach the Hover Unit, a marker appears next to it in your parts list, and clicking on that marker offers an easier way for mouse users to swap between the two. Doing so is the equivalent of the 'Y' option in the modal swap menu accessed via Ctrl-RMB or '/'. 00552_ Acquired 20 matter. 00556_ Acquired 1 matter. 00596_ EXIT=FOUND 00623_ Assault Rifle destroyed. 00637_ Hover Unit destroyed. 00652_ Seismic Detector destroyed. 00654_ G-34 Mercenary destroyed. 00666_ Lgt. Nuclear Core destroyed. Map ----- +----------------------------------------------------+ | | | | | | | | | | | | | ?????????????????????????????????????????????????? | | ???????????????????????########??###?????????????? | | ???????????????????????# ?????????????? | | ???????????????????????# """ """ #???????????? | | ???????????????????????# < """ """ #???????????? | | ???????????????????????# """ """ #???????????? | | ???????????????????????# #???????????? | | ???????????????????????# #???????????? | | ???????????????????????# #???????????? | | ???????????????????????# #???????????? | | ???????????????????????##### ########????????????? | | ???????????????????????????#[ ##????????????????? | | ????????????????????????####% ##???????????????? | | ????????????????????????# ! ##??????????????? | | ????????????????????????# #??????????????? | | ????????????????????????#g## #??????????????? | | ????????????????????????# ### < ##??????????????? | | ????????????????????????# #?## ##????????##?????? | | ????????????????????????# #???###????????? ?????? | | ????????????????????????#@#??????????????# ?????? | | ????????????????????????# #??????????????# #?????? | | ????????????????????????# #??????????????# #?????? | | ????????????????????????# #??????????????# #?????? | | ????????????????????????# #??????????????# #?????? | | ????????????????????????# #??????????????# #?????# | | ????????????????????????# ######?????????# #??#### | | ????????????????????????# %#?????##### #### | | ????????????????????????#####%%#?????# | | ?????????????????????????#### #?????# ### | | ???????????????????????### ##????# ####?## | | ???????????????????##### ###### #?????## | | ???????????????????# #??????### | | ???????????????????# ## #????????? | | ??????????????????????## ####### ##????????? | | ???????????????????????##### #?????# #?????????? | | ???????????????????????????## ?????# #?????????? | | ????????????????????????????# ?????# #?????????? | | ????????????????????????????## ?????# ?????????? | | ?????????????????????????????# ????###?????????? | | ?????????????????????????????## ????????????????? | | ???????????????????????????????##????????????????? | | ?????????????????????????????????????????????????? | | ?????????????????????????????????????????????????? | | ?????????????????????????????????????????????????? | +----------------------------------------------------+ Best States ------------- Heat Dissipation 25 Energy Generation 14 Energy Capacity 400 Matter Stores 300 Matter Capacity 300 Sight Range 16 Terrain Scan Density 10 Evasion (%) 53 Item Schematics ----------------- None Robot Schematics ------------------ None Fabricated ------------ Nothing Alien Tech Used ----------------- None Achievements -------------- Hey, That's Mine! Challenges ------------ None Game ------ Seed TransportSpreadWeb Manual? 0 Play Time 00:15:36 Cumulative 1.2 hours Start 2025.03.22 @ 15:40:54 End 2025.03.22 @ 15:55:37 Sessions 1 Manual Loads 0 Difficulty Rogue Special Mode None Game No. 3 Rogue 3 Adventurer 0 Explorer 0 Win Type - Total 0 Types 0/0/0/0/0/0/0/0/0 Lore% 2 Gallery% 3 Achievement% 4 Wizard Run 0 Options --------- Layout 2 ASCII 0 Keyboard 1 Movement Arrows Keybinds 0 Fullscreen 2 Font 20/SmallcapsGlow Map View 54x51 Zoom Use 0% Tactical HUD 1 Map Filters NONE Filters NONE Steam 1 RUN: 81f6d5ba-9b0c-47b1-8fd2-b9e64597ab90